bitfinex-derivatives/quotes_ETHF0:USTF0_20250903
["timestamp","ask_amount","ask_price","bid_price","bid_amount"]
[1756909784592,1.24652268,4441.2,4440.6,0.756]
[1756909784793,0.24,4441.3,4440.1,3.2078]
[1756909784794,3.2078,4440.9,4440.3,0.756]
[1756909784997,0.76052268,4440.8,4440.7,40.8]
[1756909785299,0.76052268,4440.8,4440.7,41.556]
[1756909785801,1.48652268,4440.8,4440.7,40.8]
[1756909786001,1.48652268,4440.8,4440.2,0.756]
[1756909786197,0.52052268,4440.7,4440.2,0.756]
[1756909786501,0.52052268,4440.6,4440.3,40.8]
[1756909786798,0.52052268,4440.6,4439.5,3.5011]
[1756909786799,0.726,4440.3,4439.5,3.5011]
[1756909786997,3.2078,4439.9,4439.0,3.5134]
[1756909787197,3.2078,4439.9,4439.6,40.8]
[1756909787198,0.76052268,4439.8,4439.6,40.8]
[1756909787496,1.24652268,4439.7,4439.6,40.8]
[1756909787692,0.52052268,4439.7,4439.6,41.556]
[1756909787898,0.726,4441.8,4440.6,0.756]
[1756909788201,0.24,4441.7,4441.1,0.756]
[1756909788790,3.2078,4442.1,4441.1,0.756]
[1756909788994,0.24,4442.0,4441.1,0.756]
[1756909789590,0.726,4442.0,4441.1,0.756]
[1756909789790,0.24,4441.9,4441.1,0.756]
[1756909790401,3.2078,4441.6,4441.1,0.756]
[1756909790595,0.24,4441.5,4441.0,0.3056]
[1756909790793,0.24,4441.5,4441.1,0.756]
[1756909791398,0.24,4441.5,4441.0,0.3056]
[1756909791603,0.24,4441.5,4441.1,0.756]
[1756909792590,0.24,4441.5,4440.5,0.3056]
[1756909792794,0.726,4441.4,4441.2,40.8]
[1756909793190,0.726,4441.4,4441.2,41.556]
[1756909793397,0.726,4441.4,4441.2,40.8]
[1756909793702,0.726,4441.4,4441.3,0.756]
[1756909794398,0.543,4441.5,4441.2,40.8]
[1756909795099,0.726,4441.4,4441.2,40.8]
[1756909795299,3.2078,4441.6,4441.3,0.756]
[1756909795499,3.2078,4441.6,4441.5,0.3056]
[1756909795798,0.24,4441.7,4441.5,1.0616]
[1756909795994,0.24,4441.7,4441.6,0.756]
[1756909796190,3.2078,4442.1,4441.6,0.756]
[1756909796191,0.24,4442.0,4441.6,0.756]
[1756909796706,0.24,4442.0,4441.8,0.756]
[1756909798000,0.24,4442.0,4441.7,40.8]
[1756909798194,3.2078,4442.1,4442.0,0.3056]
[1756909798395,3.4478,4442.1,4442.0,0.3056]
[1756909798596,3.4478,4442.1,4442.0,0.756]
[1756909798792,1.029,4442.0,4441.7,40.8]
[1756909798999,0.303,4442.0,4441.7,40.8]
[1756909799199,3.2078,4442.1,4441.8,0.756]
[1756909799504,3.2078,4442.7,4442.1,0.756]
[1756909799803,3.2078,4442.7,4442.6,0.756]
[1756909800005,3.96723572,4442.7,4442.6,0.756]
[1756909800306,4.69323572,4442.7,4442.1,0.756]
[1756909800502,32.742,4443.5,4442.0,0.5456]
[1756909800503,3.2078,4443.2,4442.7,0.756]
[1756909800699,0.51937132,4443.1,4442.7,0.756]
[1756909801006,0.24,4444.0,4443.1,0.756]
[1756909801197,0.51929526,4443.9,4443.2,0.756]
[1756909801397,0.24,4444.0,4443.2,0.756]
[1756909801595,0.24,4444.0,4443.4,3.9638]
[1756909801803,3.2078,4444.7,4443.6,0.756]
[1756909802105,0.75882183,4444.6,4443.6,0.756]
[1756909802310,0.24,4444.6,4444.1,0.756]
[1756909802505,3.2078,4445.7,4444.1,5.16095]
[1756909802704,0.51825503,4445.6,4444.9,3.9036597]
[1756909802905,1.20693225,4446.6,4444.9,3.9036597]
[1756909802906,3.2078,4446.3,4445.5,0.40483]
[1756909803100,3.2078,4446.8,4446.1,0.756]
[1756909803401,3.2078,4446.8,4446.6,0.756]
[1756909804109,3.9036597,4448.3,4446.5,0.5446]
[1756909804110,3.2078,4448.4,4447.0,0.40469]
[1756909804304,0.19091929,4448.5,4447.4,3.2078]
[1756909804496,0.19091929,4448.5,4447.5,0.239]
[1756909804694,0.19091929,4448.5,4448.2,40.8]
[1756909804901,0.726,4448.7,4448.2,40.8]
[1756909805102,0.303,4449.0,4448.2,40.8]
[1756909805297,0.726,4449.3,4448.2,40.8]
[1756909805501,32.834,4450.0,4448.5,3.9036597]
[1756909805502,0.726,4449.8,4448.5,3.9036597]
[1756909805702,0.403,4450.0,4448.6,0.239]
[1756909805907,1.129,4450.0,4448.6,4.239]
[1756909806109,1.129,4450.0,4448.6,4.0]
[1756909806308,1.129,4450.0,4448.4,3.2078]
[1756909806309,0.896,4448.9,4448.4,3.2078]
[1756909806510,0.17,4448.9,4448.5,0.239]
[1756909806807,0.17,4448.9,4448.4,3.2078]
[1756909807207,0.726,4448.8,4448.4,3.2078]
[1756909807403,0.17,4448.9,4448.4,3.2078]
[1756909807605,1.029,4448.5,4448.2,40.8]
[1756909807810,0.726,4448.4,4448.2,40.8]
[1756909808006,0.303,4448.5,4448.2,40.8]
[1756909808514,0.726,4448.4,4448.2,40.8]
[1756909809106,1.029,4448.5,4448.2,40.8]
[1756909809305,0.726,4448.4,4448.2,40.8]
[1756909809711,0.303,4448.5,4448.2,40.8]
[1756909809914,0.726,4448.4,4448.2,40.8]
[1756909810112,0.17,4448.9,4448.2,0.239]
[1756909810308,0.17,4448.9,4447.2,0.19161347]
[1756909810309,0.17,4448.9,4448.5,3.2078]
[1756909810507,0.896,4448.9,4448.5,3.2078]
[1756909810718,0.17,4448.9,4448.6,41.039]
[1756909810929,0.1,4450.0,4448.7,3.9036597]
[1756909811118,0.1,4450.0,4449.8,3.2078]
[1756909811317,0.1,4450.0,4449.8,3.4468]
[1756909811614,3.2078,4451.3,4449.9,3.9036597]
[1756909811913,0.7477,4451.2,4450.4,3.2078]
[1756909812311,0.7477,4451.2,4450.7,40.8]
[1756909812516,3.9555,4451.3,4450.7,40.8]
[1756909813224,0.7477,4451.3,4450.7,40.8]
[1756909813407,0.3117,4451.0,4450.7,40.8]
[1756909813815,0.7477,4450.9,4450.7,40.8]
[1756909814119,4.46368,4450.9,4449.3,3.2078]
[1756909814417,3.9555,4449.4,4449.2,0.1828987]
[1756909814606,0.9867,4449.3,4449.2,0.1828987]
[1756909814808,0.7477,4449.3,4449.2,0.1828987]
[1756909815005,0.7477,4449.3,4448.4,40.8]
[1756909815006,0.7477,4449.2,4448.4,41.039]
[1756909815409,0.7477,4449.2,4448.4,40.8]
[1756909815809,0.3117,4448.5,4448.4,40.8]
[1756909816009,1.0594,4448.5,4448.4,40.8]
[1756909816413,0.7477,4448.5,4448.4,40.8]
[1756909816919,3.2078,4449.3,4448.4,45.039]
[1756909817220,0.3117,4449.5,4448.8,3.2078]
[1756909817417,0.7477,4449.4,4448.8,3.2078]
[1756909817620,0.9867,4449.4,4448.8,3.2078]
[1756909818506,0.7477,4449.3,4448.4,40.8]
[1756909818720,0.7477,4448.8,4448.4,40.8]
[1756909819113,0.7477,4448.7,4448.4,40.8]
[1756909819317,0.7477,4448.8,4448.4,40.8]
[1756909819819,3.2078,4449.4,4448.4,41.039]
[1756909819820,0.239,4449.2,4448.4,41.039]
[1756909820113,0.239,4449.2,4448.4,40.8]
[1756909820314,0.3117,4449.0,4448.4,40.8]
[1756909820621,1.0594,4448.5,4448.4,40.8]
[1756909821713,5.0594,4448.5,4448.4,40.8]
[1756909821911,0.7477,4448.4,4447.7,3.2078]
[1756909822115,4.5003382,4448.3,4447.2,3.2078]
[1756909822417,0.7477,4447.4,4447.3,40.8]
[1756909822615,0.7477,4447.4,4446.2,3.2078]
[1756909822616,0.239,4447.4,4446.2,3.2078]
[1756909823113,0.239,4447.4,4446.3,40.8]
[1756909823319,0.7477,4446.4,4446.3,40.8]
[1756909823810,0.5507,4447.5,4446.3,41.0249]
[1756909824018,0.239,4447.5,4446.4,0.239]
[1756909824321,0.239,4447.5,4446.7,3.2078]
[1756909824520,0.239,4447.5,4446.8,0.239]
[1756909825114,0.5507,4447.5,4446.7,3.2078]
[1756909825416,0.86,4447.3,4446.7,3.2078]
[1756909826917,0.1123,4447.3,4447.2,3.2078]
[1756909827422,0.86,4447.3,4447.2,3.2078]
[1756909827623,0.86,4447.3,4447.2,40.8]
[1756909828617,0.1123,4447.3,4447.2,40.8]
[1756909829719,0.86,4447.3,4447.2,40.8]
[1756909830023,1.3747708,4447.3,4447.2,40.8]
[1756909830418,0.6270708,4447.3,4447.2,40.8]
[1756909830624,1.3747708,4447.3,4447.2,40.8]
[1756909831031,0.1123,4447.3,4447.2,40.8]
[1756909831228,0.62796764,4447.3,4447.2,40.8]
[1756909832023,0.62796764,4447.3,4447.2,41.039]
[1756909832327,0.62796764,4447.3,4447.2,40.8]
[1756909832328,1.37566764,4447.3,4447.2,40.8]
[1756909833026,0.62796764,4447.3,4447.2,40.8]
[1756909833932,0.62796764,4447.3,4447.2,44.8]
[1756909834431,0.3117,4446.5,4445.5,3.2078]
[1756909834628,0.3117,4446.5,4444.9,0.2705]
[1756909834629,1.95424607,4446.2,4445.0,3.2078]
[1756909834938,0.51566764,4446.1,4445.7,0.2705]
[1756909835232,0.51566764,4446.0,4445.6,40.8]
[1756909835430,0.51566764,4445.9,4445.8,0.2705]
[1756909835728,0.51566764,4445.9,4445.6,41.041]
[1756909835932,0.51566764,4445.8,4445.6,40.8]
[1756909836122,3.2078,4446.4,4445.7,0.5115]
[1756909836328,0.51651452,4446.3,4445.7,0.5115]
[1756909836536,0.51651452,4446.2,4445.7,0.241]
[1756909836731,0.51651452,4446.1,4445.7,0.241]
[1756909836943,0.51651452,4446.0,4445.7,0.241]
[1756909837146,0.241,4446.7,4445.9,3.4783]
[1756909837340,1.96390002,4446.7,4445.9,3.7193]
[1756909837541,0.51635395,4446.6,4445.9,3.7193]
[1756909837741,0.51635395,4446.5,4445.9,3.4783]
[1756909837940,0.51635395,4446.4,4445.9,3.4488]
[1756909838141,0.51635395,4446.3,4445.9,3.2078]
[1756909838339,0.7477,4446.1,4445.9,3.2078]
[1756909838536,1.26405395,4446.0,4445.9,3.2078]
[1756909838840,0.82805395,4446.0,4445.6,40.8]
[1756909839045,0.51635395,4445.9,4445.7,0.2705]
[1756909839345,0.7477,4446.7,4445.8,3.7193]
[1756909839540,0.3117,4446.5,4445.6,40.8]
[1756909839746,1.26376166,4446.4,4445.6,40.8]
[1756909839937,0.51606166,4446.3,4445.6,40.8]
[1756909840239,0.51606166,4446.3,4445.6,41.3115]
[1756909840440,0.7477,4446.2,4445.6,40.8]
[1756909840641,1.26376166,4446.1,4445.7,0.2705]
[1756909840835,0.51606166,4446.0,4445.7,0.2705]
[1756909841039,0.51606166,4446.0,4445.6,40.8]
[1756909841040,0.51606166,4445.9,4445.8,3.7193]
[1756909841341,0.8601,4446.6,4445.8,3.7193]
[1756909841541,0.8601,4446.6,4445.8,3.94421]
[1756909841542,0.51599012,4446.5,4445.8,3.94421]
[1756909841741,0.51599012,4446.4,4445.9,0.241]
[1756909842044,0.51599012,4446.3,4446.0,0.2466]
[1756909842243,0.1124,4446.6,4446.2,3.2078]
[1756909842435,0.51632474,4446.5,4446.2,3.2078]
[1756909842633,0.7354,4446.3,4446.2,3.2078]
[1756909842834,1.25172474,4446.3,4446.2,3.2078]
[1756909843038,1.25172474,4446.3,4446.2,40.8]
[1756909843434,0.51632474,4446.3,4446.2,40.8]
[1756909843632,0.51632474,4446.4,4446.2,40.8]
[1756909843837,0.51632474,4446.3,4446.2,40.8]
[1756909844041,1.25172474,4446.3,4446.2,40.8]
[1756909844741,5.25172474,4446.3,4445.6,3.2078]
[1756909844944,1.20654607,4446.6,4446.5,0.40474]
[1756909845143,3.2078,4448.9,4446.7,1.01182]
[1756909845340,0.7354,4448.9,4448.8,40.8]
[1756909846849,0.9784,4449.4,4448.8,44.0078]
[1756909847047,0.3036,4449.0,4448.8,44.0078]
[1756909847351,0.7354,4448.9,4448.8,44.0078]
[1756909847741,0.7354,4449.4,4448.8,44.2508]
[1756909847942,0.3337,4449.5,4448.8,44.2508]
[1756909848543,0.3337,4449.5,4449.3,3.2078]
[1756909848750,1.039,4449.5,4449.3,3.2078]
[1756909848948,0.7354,4449.4,4449.3,3.2078]
[1756909849339,0.7354,4449.4,4449.0,0.243]
[1756909849540,0.3036,4449.5,4449.0,0.243]
[1756909849742,0.7354,4449.4,4449.0,0.243]
[1756909849945,0.3036,4449.5,4449.0,0.243]
[1756909850139,1.039,4449.5,4448.9,0.242]
[1756909850548,1.039,4449.5,4448.8,44.2498]
[1756909850748,1.039,4449.5,4448.8,3.4498]
[1756909850944,1.039,4449.5,4448.8,3.2078]
[1756909851147,1.039,4449.5,4449.4,40.8]
[1756909851546,0.7655,4449.7,4449.4,40.8]
[1756909851751,0.0301,4449.7,4449.5,0.242]
[1756909852051,0.7354,4450.4,4449.5,0.242]
[1756909852247,0.3036,4450.5,4450.2,3.2078]
[1756909852440,0.7354,4450.4,4450.2,3.2078]
[1756909853047,0.3036,4450.5,4449.7,3.2078]
[1756909853349,0.7354,4449.9,4449.7,3.2078]
[1756909853554,0.3036,4450.0,4449.7,3.2078]
[1756909853853,1.039,4449.5,4449.4,40.8]
[1756909855554,0.5456,4450.0,4449.4,40.8]
[1756909855753,0.7354,4450.3,4449.8,3.2078]
[1756909855954,0.7354,4450.3,4449.9,0.242]
[1756909856253,0.3036,4450.5,4449.9,0.242]
[1756909856749,0.3036,4450.5,4450.0,40.8]
[1756909856953,0.7354,4450.4,4450.0,40.8]
[1756909857152,1.039,4451.0,4450.3,3.2078]
[1756909857556,0.3036,4450.5,4450.3,3.2078]
[1756909857753,0.7354,4450.4,4450.3,3.2078]
[1756909858953,0.7354,4450.4,4450.3,40.8]
[1756909859658,4.7354,4450.4,4450.3,40.8]
[1756909860155,0.9774,4450.4,4450.3,40.8]
[1756909860354,0.7354,4450.4,4450.3,40.8]
[1756909861155,4.7354,4450.4,4450.3,40.8]
[1756909862556,0.7354,4450.4,4449.2,0.242]
[1756909862754,3.5114,4450.5,4449.1,3.4498]
[1756909862951,3.2078,4449.9,4449.3,40.8]
[1756909863257,3.2078,4449.9,4448.6,3.2078]
[1756909863258,0.3036,4449.5,4448.6,3.2078]
[1756909863456,0.7354,4448.9,4448.1,3.2078]
[1756909863962,0.7354,4448.9,4448.2,40.8]
[1756909865058,0.242,4448.9,4448.2,40.8]
[1756909865259,0.3036,4448.5,4447.6,3.2078]
[1756909865458,0.3036,4448.5,4445.7,6.09533275]
[1756909865459,0.7354,4447.9,4447.0,0.242]
[1756909865765,0.7354,4447.9,4446.9,3.2078]
[1756909865766,0.7354,4447.7,4447.1,40.8]
[1756909866060,0.3036,4447.5,4447.1,40.8]
[1756909866256,0.7354,4447.4,4447.1,40.8]
[1756909866462,0.3036,4447.5,4447.1,40.8]
[1756909866661,0.7354,4447.4,4447.1,40.8]
[1756909867059,0.3036,4447.5,4447.1,40.8]
[1756909867267,0.7354,4447.4,4447.1,40.8]
[1756909867456,0.3036,4447.5,4447.1,40.8]
[1756909867955,0.7354,4447.4,4447.1,40.8]
[1756909868158,0.3036,4447.5,4447.1,40.8]
[1756909868353,0.7354,4447.4,4447.1,40.8]
[1756909868558,0.242,4447.5,4447.1,40.8]
[1756909868861,0.7354,4447.9,4447.1,40.8]
[1756909869066,0.7354,4447.9,4447.4,3.2078]
[1756909869266,0.3036,4448.5,4447.4,3.2078]
[1756909869267,0.242,4448.2,4447.4,3.4498]
[1756909869672,0.7354,4448.5,4447.9,3.2078]
[1756909869963,0.242,4448.7,4447.9,3.4498]
[1756909870164,0.0301,4448.4,4447.9,3.4498]
[1756909870366,0.0301,4448.4,4447.9,3.2078]
[1756909870665,0.0301,4448.4,4448.0,0.0307]
[1756909870966,0.0301,4448.4,4448.1,0.242]
[1756909871162,0.7354,4449.2,4448.2,4.0307]
[1756909871362,0.3036,4449.5,4448.8,3.2078]
[1756909871664,0.7354,4449.8,4448.8,3.2078]
[1756909871866,0.9774,4449.8,4448.8,3.2078]
[1756909872160,0.7354,4449.8,4449.3,3.2078]
[1756909872364,0.242,4449.9,4449.3,3.2078]
[1756909872665,0.242,4449.9,4449.3,3.4498]
[1756909873265,0.783,4450.9,4449.8,3.2078]
[1756909873461,0.783,4450.9,4449.9,0.242]
[1756909873769,0.783,4450.9,4450.3,3.2078]
[1756909874468,1.0822,4451.5,4450.8,7.7081382]
[1756909874770,0.783,4452.6,4451.3,3.2078]
[1756909874963,0.783,4452.6,4451.9,3.2078]
[1756909875163,0.783,4452.4,4452.3,40.8]
[1756909875766,1.0822,4453.0,4452.3,40.8]
[1756909875961,0.2992,4453.0,4452.3,40.8]
[1756909876263,0.783,4452.9,4452.3,40.8]
[1756909876769,0.2992,4453.0,4452.4,3.2078]
[1756909877066,0.783,4453.4,4452.5,4.1263524]
[1756909877566,0.2992,4453.5,4452.9,3.2078]
[1756909877868,1.0822,4453.5,4452.9,3.2078]
[1756909878564,1.0822,4453.5,4452.3,40.8]
[1756909878565,0.783,4452.4,4452.3,40.8]
[1756909878768,1.025,4452.4,4452.3,40.8]
[1756909880264,5.025,4452.4,4452.3,40.8]
[1756909880466,1.025,4452.4,4452.3,40.8]
[1756909880866,0.783,4452.4,4452.3,40.8]
[1756909881068,1.025,4452.8,4452.3,40.8]
[1756909881270,0.783,4452.8,4452.2,3.2078]
[1756909881766,0.242,4452.9,4452.7,40.8]
[1756909881970,0.783,4452.8,4452.7,40.8]
[1756909882474,0.783,4451.9,4451.7,3.2078]
[1756909882672,0.783,4451.9,4451.2,3.4498]
[1756909882868,0.783,4451.9,4451.8,40.8]
[1756909883374,4.0,4451.9,4450.7,3.2078]
[1756909883573,0.783,4451.4,4450.7,3.2078]
[1756909883876,0.242,4451.3,4450.8,40.8]
[1756909884663,0.2992,4451.5,4450.8,40.8]
[1756909884977,0.242,4451.9,4451.2,3.2078]
[1756909885564,0.241,4451.9,4451.2,3.2078]
[1756909885773,0.241,4452.3,4451.8,3.2078]
[1756909885977,1.024,4452.3,4451.8,3.2078]
[1756909886574,0.783,4452.3,4451.8,3.2078]
[1756909886871,0.783,4452.4,4451.8,3.2078]
[1756909888671,0.241,4452.7,4452.3,3.2078]
[1756909888981,1.024,4452.7,4452.3,3.2078]
[1756909889174,0.783,4452.7,4452.3,3.2078]
[1756909889374,0.2992,4453.0,4452.3,3.2078]
[1756909889375,0.241,4452.9,4452.4,40.8]
[1756909889779,0.783,4452.8,4452.4,40.8]
[1756909889976,0.241,4453.2,4452.4,40.8]
[1756909890169,0.241,4453.2,4452.4,41.041]
[1756909890775,0.241,4453.2,4452.8,3.2078]
[1756909890987,0.783,4453.4,4452.8,3.2078]
[1756909891179,0.241,4453.7,4452.8,3.2078]
[1756909891378,0.241,4453.7,4452.9,0.241]
[1756909892274,0.241,4453.7,4452.8,3.2078]
[1756909892481,0.241,4453.7,4452.9,0.241]
[1756909892981,0.241,4453.7,4452.8,3.4488]
[1756909894079,0.2992,4454.0,4453.4,3.2078]
[1756909894276,1.0822,4454.0,4453.4,3.2078]
[1756909896280,0.783,4454.6,4453.6,3.8843524]
[1756909896482,0.24,4454.9,4454.2,3.2078]
[1756909896685,0.24,4454.9,4454.3,40.8]
[1756909896879,0.783,4454.8,4454.3,40.8]
[1756909897076,0.24,4454.9,4454.3,40.8]
[1756909897389,1.023,4454.9,4454.3,40.8]
[1756909897782,0.783,4454.9,4454.3,40.8]
[1756909898688,0.783,4454.9,4454.4,0.24]
[1756909898878,1.0822,4455.0,4454.4,0.24]
[1756909900584,0.2992,4454.5,4454.3,40.8]
[1756909901081,0.783,4454.9,4454.3,40.8]
[1756909901478,0.2992,4455.0,4454.3,40.8]
[1756909901679,0.7315,4454.4,4454.3,40.8]
[1756909902983,0.7315,4453.9,4453.1,3.2078]
[1756909903177,0.7315,4453.9,4451.4,32.349]
[1756909903178,3.2078,4453.2,4452.1,4.1243524]
[1756909903380,0.7315,4453.4,4452.6,7.0921524]
[1756909903578,3.2078,4453.8,4452.7,0.24]
[1756909903780,3.2078,4453.8,4452.6,7.0921524]
[1756909903781,1.0281,4454.0,4453.2,3.2078]
[1756909904084,0.48023135,4453.9,4453.3,0.24]
[1756909904285,0.7315,4454.4,4453.3,0.24]
[1756909904474,0.48022233,4454.3,4453.3,0.24]
[1756909904680,0.48022233,4454.2,4453.2,3.2078]
[1756909904875,0.7315,4454.2,4453.2,3.2078]
[1756909905081,0.7315,4454.2,4453.3,0.24]
[1756909905278,0.7315,4454.2,4453.4,0.24]
[1756909905781,0.7315,4454.2,4453.2,3.2078]
[1756909905980,0.7315,4454.2,4453.3,0.24]
[1756909906285,0.7315,4454.2,4453.4,0.24]
[1756909906481,0.7315,4454.2,4453.5,0.24]
[1756909906482,0.2966,4454.0,4453.5,0.24]
[1756909906689,0.7315,4453.4,4453.2,3.2078]
[1756909906982,0.7315,4453.4,4452.6,3.2078]
[1756909907792,0.2966,4453.5,4452.6,3.2078]
[1756909907982,0.2966,4453.5,4452.2,41.04]
[1756909907983,0.7315,4452.8,4452.2,41.04]
[1756909908284,0.7315,4453.3,4452.4,3.8843524]
[1756909908488,0.7315,4453.3,4452.5,0.24]
[1756909908784,0.2966,4453.5,4452.1,3.2078]
[1756909908991,0.7315,4453.3,4452.1,3.2078]
[1756909909178,0.7315,4453.3,4452.6,40.8]
[1756909909383,0.48035754,4453.2,4452.6,40.8]
[1756909909587,0.7315,4452.9,4452.6,40.8]
[1756909909982,0.2966,4453.0,4452.6,40.8]
[1756909910276,3.8843524,4452.9,4452.6,40.8]
[1756909910481,0.7315,4452.7,4452.6,40.8]
[1756909910682,0.7315,4451.9,4451.5,3.2078]
[1756909910887,0.2966,4452.0,4451.5,3.2078]
[1756909911083,1.21210038,4451.9,4451.6,40.8]
[1756909911284,0.7315,4451.7,4451.6,40.8]
[1756909911486,1.21210038,4451.7,4451.6,40.8]
[1756909911987,0.2966,4450.5,4450.3,3.2078]
[1756909912199,0.7315,4450.4,4449.8,3.2078]
[1756909912586,0.7315,4450.4,4450.3,40.8]
[1756909912884,0.2966,4451.0,4450.3,40.8]
[1756909913082,0.2966,4451.0,4450.5,3.2078]
[1756909913286,0.7315,4450.9,4450.3,40.8]
[1756909913688,0.7315,4450.9,4450.6,3.2078]
[1756909913890,0.24,4451.8,4450.7,4.1243524]
[1756909914192,0.2966,4451.5,4450.8,0.24]
[1756909914491,0.7315,4451.4,4450.6,3.2078]
[1756909914689,0.2966,4451.5,4450.6,3.2078]
[1756909915088,0.7315,4451.3,4450.6,3.2078]
[1756909915794,0.2966,4451.5,4450.6,3.2078]
[1756909915992,0.7315,4451.3,4450.6,3.2078]
[1756909917095,0.7315,4451.3,4450.3,40.8]
[1756909917096,0.2966,4451.0,4450.3,40.8]
[1756909917297,0.2966,4450.5,4450.3,40.8]
[1756909917496,0.7315,4450.4,4450.3,40.8]
[1756909918493,0.2966,4451.0,4450.3,40.8]
[1756909918494,0.7315,4450.9,4450.3,40.8]
[1756909918693,0.7315,4450.9,4450.4,3.2078]
[1756909919001,1.0281,4450.5,4450.4,3.2078]
[1756909919298,0.7315,4450.4,4450.3,40.8]
[1756909920800,4.9705,4450.4,4450.3,40.8]
[1756909920990,4.239,4450.4,4449.3,3.2078]
[1756909921199,0.7315,4449.8,4449.0,0.239]
[1756909921399,0.239,4449.7,4449.0,0.239]
[1756909921601,0.7315,4449.6,4449.4,40.8]
[1756909921996,0.239,4449.7,4449.4,40.8]
[1756909922191,1.0281,4449.5,4449.4,40.8]
[1756909923401,0.7315,4448.9,4447.4,3.8843524]
[1756909923706,0.9705,4448.9,4448.3,3.2078]
[1756909923998,0.9705,4448.9,4448.8,40.8]
[1756909924598,0.9705,4448.9,4447.8,3.2078]
[1756909924599,0.239,4448.9,4447.8,3.2078]
[1756909924798,3.8843524,4448.7,4447.8,3.2078]
[1756909925106,0.7315,4447.9,4447.8,3.2078]
[1756909925293,0.2966,4448.0,4447.8,3.2078]
[1756909925592,0.5356,4449.0,4447.9,44.9233524]
[1756909926296,3.2078,4449.3,4447.9,44.9233524]
[1756909926297,0.239,4449.2,4448.3,3.2078]
[1756909926498,0.239,4449.2,4448.4,0.239]
[1756909926696,3.2078,4449.3,4448.5,0.239]
[1756909926902,0.24,4449.4,4448.9,3.2078]
[1756909927204,0.24,4449.7,4448.9,7.3321524]
[1756909927403,32.363,4450.3,4448.9,7.3321524]
[1756909927404,0.24,4450.1,4449.0,0.24]
[1756909927604,0.24,4450.7,4449.7,3.2078]
[1756909927804,0.24,4450.7,4449.8,0.24]
[1756909928506,0.7315,4450.9,4449.7,3.39598309]
[1756909928707,3.2078,4451.1,4449.8,4.1243524]
[1756909929105,3.2078,4451.1,4450.2,3.2078]
[1756909929298,3.2078,4451.1,4450.3,0.24]
[1756909930312,1.0281,4451.5,4450.3,0.24]
[1756909930505,1.0281,4452.0,4451.2,3.2078]
[1756909930696,1.0281,4452.5,4451.3,0.24]
[1756909930903,1.0281,4452.5,4451.4,3.8843524]
[1756909931103,0.24,4452.7,4452.1,40.8]
[1756909933705,3.9393,4452.9,4452.1,40.8]
[1756909935211,3.9393,4452.9,4452.2,0.24]
[1756909936707,3.9393,4452.9,4452.8,40.8]
[1756909937111,0.7315,4452.9,4452.8,40.8]
[1756909939402,0.24,4453.1,4452.8,40.8]
[1756909939608,1.0083,4453.1,4452.8,40.8]
[1756909939813,0.7683,4453.0,4452.8,40.8]
[1756909940814,0.7683,4452.9,4452.8,40.8]
[1756909941707,0.24,4453.1,4452.8,40.8]
[1756909942009,0.239,4453.8,4452.8,0.239]
[1756909942210,0.239,4453.8,4452.9,0.239]
[1756909942710,1.0073,4453.8,4453.4,40.8]
[1756909942915,0.239,4453.8,4453.4,40.8]
[1756909943111,0.7683,4453.7,4453.4,40.8]
[1756909943308,0.2864,4453.5,4453.4,40.8]
[1756909943508,1.0547,4453.5,4453.4,40.8]
[1756909944909,0.7683,4454.2,4453.4,40.8]
[1756909946016,0.7683,4454.2,4453.5,0.239]
[1756909946212,1.0073,4454.2,4453.5,0.239]
[1756909946607,0.7683,4454.1,4453.4,40.8]
[1756909946914,0.2864,4454.0,4453.5,0.239]
[1756909947709,0.7683,4453.9,4453.5,0.239]
[1756909948812,0.7683,4453.9,4453.8,40.8]
[1756909951709,0.7683,4454.3,4453.8,40.8]
[1756909952011,0.7683,4454.3,4453.8,41.039]
[1756909952214,0.2966,4454.5,4453.8,41.039]
[1756909952413,0.7683,4454.8,4454.2,3.2078]
[1756909952611,0.7683,4454.8,4454.7,3.2078]
[1756909953312,3.4468,4455.4,4454.7,3.2078]
[1756909953511,0.7683,4454.9,4454.7,3.2078]
[1756909953913,3.9761,4455.4,4454.7,3.2078]
[1756909954119,3.9761,4455.4,4454.8,0.239]
[1756909954314,0.2864,4455.5,4455.3,40.8]
[1756909954522,3.2078,4456.0,4455.3,40.8]
[1756909954814,0.7683,4457.4,4455.9,3.2078]
[1756909955021,0.7683,4457.4,4456.4,3.2078]
[1756909955209,0.7683,4457.4,4456.5,0.239]
[1756909955409,0.29044919,4459.0,4456.5,0.239]
[1756909955410,3.2078,4458.8,4457.3,40.8]
[1756909955610,1.1547,4460.0,4458.7,3.2078]
[1756909955922,0.7683,4459.4,4458.8,3.4478]
[1756909956119,0.7683,4459.4,4458.8,0.24]